fUSD/lending_fUSD_20260614
["ID","MTS","AMOUNT","RATE_DAILY","PERIOD"]
[425057298,1781447512000,-881.04,0.00029589,8]
[425057299,1781447512000,-500.0,0.00029589,8]
[425057297,1781447512000,-1042.52,0.00029589,8]
[425057300,1781447512000,-642.31,0.00029589,8]
[425057295,1781447512000,-500.0,0.00029589,8]
[425057296,1781447512000,-500.0,0.00029589,8]
[425057361,1781447513000,-920.43,0.00029589,8]
[425057370,1781447513000,-2667.75,0.00029589,8]
[425057365,1781447513000,-662.85,0.00029589,8]
[425057368,1781447513000,-698.01,0.00029589,8]
[425057367,1781447513000,-605.61,0.00029589,8]
[425057364,1781447513000,-509.71,0.00029589,8]
[425057366,1781447513000,-500.0,0.00029589,8]
[425057371,1781447513000,-500.0,0.00029589,8]
[425057375,1781447513000,-674.5,0.00029589,8]
[425057374,1781447513000,-500.0,0.00029589,8]
[425057382,1781447513000,-500.0,0.00029589,8]
[425057378,1781447513000,-500.0,0.00029589,8]
[425057372,1781447513000,-500.0,0.00029589,8]
[425057380,1781447513000,-1169.04,0.00029589,8]
[425057379,1781447513000,-500.0,0.00029589,8]
[425057376,1781447513000,-1701.25,0.00029589,8]
[425057377,1781447513000,-592.38,0.00029589,8]
[425057381,1781447513000,-558.94,0.00029589,8]
[425057383,1781447513000,-500.0,0.00029589,8]
[425057362,1781447513000,-1059.33,0.00029589,8]
[425057373,1781447513000,-500.0,0.00029589,8]
[425057369,1781447513000,-500.0,0.00029589,8]
[425057346,1781447513000,-641.52,0.00029589,8]
[425057363,1781447513000,-500.0,0.00029589,8]
[425057395,1781447513000,-500.0,0.00029589,8]
[425057340,1781447513000,-992.68,0.00029589,8]
[425057341,1781447513000,-500.0,0.00029589,8]
[425057344,1781447513000,-500.0,0.00029589,8]
[425057342,1781447513000,-1461.98,0.00029589,8]
[425057343,1781447513000,-500.0,0.00029589,8]
[425057338,1781447513000,-500.0,0.00029589,8]
[425057339,1781447513000,-869.12,0.00029589,8]
[425057345,1781447513000,-3250.13,0.00029589,8]
[425057347,1781447513000,-1539.52,0.00029589,8]
[425057358,1781447513000,-500.0,0.00029589,8]
[425057351,1781447513000,-500.0,0.00029589,8]
[425057348,1781447513000,-500.0,0.00029589,8]
[425057349,1781447513000,-500.0,0.00029589,8]
[425057357,1781447513000,-743.01,0.00029589,8]
[425057356,1781447513000,-1661.43,0.00029589,8]
[425057355,1781447513000,-500.0,0.00029589,8]
[425057353,1781447513000,-692.78,0.00029589,8]
[425057352,1781447513000,-500.0,0.00029589,8]
[425057354,1781447513000,-540.29,0.00029589,8]
[425057359,1781447513000,-553.44,0.00029589,8]
[425057360,1781447513000,-500.0,0.00029589,8]
[425057350,1781447513000,-870.51,0.00029589,8]
[425057385,1781447513000,-456.56099744,0.00029589,8]
[425057389,1781447513000,-500.0,0.00029589,8]
[425057387,1781447513000,-720.7,0.00029589,8]
[425057412,1781447513000,-703.84,0.00029589,8]
[425057414,1781447513000,-500.0,0.00029589,8]
[425057415,1781447513000,-1427.79,0.00029589,8]
[425057417,1781447513000,-500.0,0.00029589,8]
[425057416,1781447513000,-5751.63,0.00029589,8]
[425057419,1781447513000,-500.0,0.00029589,8]
[425057418,1781447513000,-500.0,0.00029589,8]
[425057421,1781447513000,-877.23,0.00029589,8]
[425057422,1781447513000,-546.64,0.00029589,8]
[425057425,1781447513000,-500.0,0.00029589,8]
[425057423,1781447513000,-1056.35,0.00029589,8]
[425057428,1781447513000,-500.0,0.00029589,8]
[425057429,1781447513000,-10759.52,0.00029589,8]
[425057427,1781447513000,-500.0,0.00029589,8]
[425057432,1781447513000,-1143.85,0.00029589,8]
[425057430,1781447513000,-500.0,0.00029589,8]
[425057426,1781447513000,-940.15,0.00029589,8]
[425057431,1781447513000,-679.83,0.00029589,8]
[425057433,1781447513000,-500.0,0.00029589,8]
[425057434,1781447513000,-500.0,0.00029589,8]
[425057384,1781447513000,-500.0,0.00029589,8]
[425057413,1781447513000,-500.0,0.00029589,8]
[425057411,1781447513000,-1000.0,0.00029589,8]
[425057424,1781447513000,-500.0,0.00029589,8]
[425057409,1781447513000,-500.0,0.00029589,8]
[425057391,1781447513000,-2238.28,0.00029589,8]
[425057420,1781447513000,-500.0,0.00029589,8]
[425057388,1781447513000,-702.01,0.00029589,8]
[425057393,1781447513000,-500.0,0.00029589,8]
[425057386,1781447513000,-605.88,0.00029589,8]
[425057390,1781447513000,-502.0,0.00029589,8]
[425057394,1781447513000,-500.0,0.00029589,8]
[425057396,1781447513000,-966.37,0.00029589,8]
[425057399,1781447513000,-2017.64,0.00029589,8]
[425057398,1781447513000,-2663.08,0.00029589,8]
[425057400,1781447513000,-580.54,0.00029589,8]
[425057392,1781447513000,-682.04,0.00029589,8]
[425057397,1781447513000,-500.0,0.00029589,8]
[425057403,1781447513000,-550.82,0.00029589,8]
[425057406,1781447513000,-842.22,0.00029589,8]
[425057402,1781447513000,-500.0,0.00029589,8]
[425057407,1781447513000,-543.63,0.00029589,8]
[425057401,1781447513000,-623.6,0.00029589,8]
[425057405,1781447513000,-1157.66,0.00029589,8]
[425057408,1781447513000,-500.0,0.00029589,8]
[425057404,1781447513000,-500.0,0.00029589,8]
[425057410,1781447513000,-1675.9,0.00029589,8]
[425057469,1781447514000,-636.66,0.00029589,8]
[425057474,1781447514000,-1000.0,0.00029589,8]
[425057467,1781447514000,-1282.28,0.00029589,8]
[425057471,1781447514000,-1109.22,0.00029589,8]
[425057473,1781447514000,-1749.66,0.00029589,8]
[425057466,1781447514000,-610.83,0.00029589,8]
[425057472,1781447514000,-4001.43,0.00029589,8]
[425057465,1781447514000,-500.0,0.00029589,8]
[425057464,1781447514000,-1682.54,0.00029589,8]
[425057470,1781447514000,-540.32,0.00029589,8]
[425057468,1781447514000,-528.7,0.00029589,8]
[425057475,1781447514000,-508.2,0.00029589,8]
[425057485,1781447514000,-25282.9,0.00029589,8]
[425057482,1781447514000,-11664.09,0.00029589,8]
[425057479,1781447514000,-1278.35,0.00029589,8]
[425057478,1781447514000,-500.0,0.00029589,8]
[425057476,1781447514000,-1023.6,0.00029589,8]
[425057481,1781447514000,-241.80862602,0.00029589,8]
[425057477,1781447514000,-1407.31,0.00029589,8]
[425057480,1781447514000,-500.0,0.00029589,8]
[425057483,1781447514000,-563.46,0.00029589,8]
[425057487,1781447514000,-677.78,0.00029589,8]
[425057494,1781447514000,-1296.71,0.00029589,8]
[425057463,1781447514000,-500.0,0.00029589,8]
[425057484,1781447514000,-500.0,0.00029589,8]
[425057459,1781447514000,-344.72551441,0.00029589,8]
[425057438,1781447514000,-626.04,0.00029589,8]
[425057457,1781447514000,-528.8,0.00029589,8]
[425057486,1781447514000,-505.16,0.00029589,8]
[425057436,1781447514000,-825.79,0.00029589,8]
[425057435,1781447514000,-1116.26,0.00029589,8]
[425057437,1781447514000,-500.0,0.00029589,8]
[425057440,1781447514000,-1082.98,0.00029589,8]
[425057439,1781447514000,-704.65,0.00029589,8]
[425057441,1781447514000,-500.0,0.00029589,8]
[425057450,1781447514000,-500.0,0.00029589,8]
[425057451,1781447514000,-500.0,0.00029589,8]
[425057443,1781447514000,-4182.59,0.00029589,8]
[425057442,1781447514000,-500.0,0.00029589,8]
[425057452,1781447514000,-2931.64,0.00029589,8]
[425057449,1781447514000,-500.0,0.00029589,8]
[425057444,1781447514000,-702.05,0.00029589,8]
[425057445,1781447514000,-500.0,0.00029589,8]
[425057448,1781447514000,-500.0,0.00029589,8]
[425057446,1781447514000,-500.0,0.00029589,8]
[425057447,1781447514000,-3026.85,0.00029589,8]
[425057453,1781447514000,-500.0,0.00029589,8]
[425057455,1781447514000,-742.57,0.00029589,8]
[425057456,1781447514000,-3706.06,0.00029589,8]
[425057458,1781447514000,-500.0,0.00029589,8]
[425057460,1781447514000,-518.74,0.00029589,8]
[425057461,1781447514000,-658.84,0.00029589,8]
[425057462,1781447514000,-500.0,0.00029589,8]
[425057454,1781447514000,-500.0,0.00029589,8]
[425057493,1781447514000,-589.03,0.00029589,8]
[425057532,1781447514000,-1357.49,0.00029589,8]
[425057490,1781447514000,-500.0,0.00029589,8]
[425057522,1781447514000,-2562.95,0.00029589,8]
[425057521,1781447514000,-500.0,0.00029589,8]
[425057530,1781447514000,-500.0,0.00029589,8]
[425057526,1781447514000,-1108.18,0.00029589,8]
[425057525,1781447514000,-500.0,0.00029589,8]
[425057531,1781447514000,-1129.02,0.00029589,2]
[425057524,1781447514000,-605.58,0.00029589,8]
[425057527,1781447514000,-500.0,0.00029589,8]
[425057523,1781447514000,-1440.23,0.00029589,8]
[425057529,1781447514000,-2020.73,0.00029589,8]
[425057528,1781447514000,-500.0,0.00029589,8]
[425057543,1781447514000,-500.0,0.00029589,8]
[425057534,1781447514000,-500.0,0.00029589,8]
[425057535,1781447514000,-878.66,0.00029589,8]
[425057545,1781447514000,-12728.02,0.00029589,8]
[425057536,1781447514000,-500.0,0.00029589,8]
[425057537,1781447514000,-529.83,0.00029589,8]
[425057538,1781447514000,-500.0,0.00029589,8]
[425057539,1781447514000,-500.0,0.00029589,8]
[425057541,1781447514000,-707.83,0.00029589,8]
[425057542,1781447514000,-900.28,0.00029589,8]
[425057540,1781447514000,-839.66,0.00029589,8]
[425057544,1781447514000,-822.75,0.00029589,8]
[425057546,1781447514000,-520.57832465,0.00029589,8]
[425057495,1781447514000,-557.28,0.00029589,8]
[425057517,1781447514000,-3655.13,0.00029589,8]
[425057518,1781447514000,-500.0,0.00029589,8]
[425057533,1781447514000,-500.0,0.00029589,8]
[425057519,1781447514000,-500.0,0.00029589,8]
[425057516,1781447514000,-500.0,0.00029589,8]
[425057497,1781447514000,-1801.16,0.00029589,8]
[425057496,1781447514000,-2890.54,0.00029589,8]
[425057488,1781447514000,-500.0,0.00029589,8]
[425057489,1781447514000,-500.0,0.00029589,8]
[425057492,1781447514000,-500.0,0.00029589,8]
[425057491,1781447514000,-2026.58,0.00029589,8]
[425057498,1781447514000,-500.0,0.00029589,8]
[425057507,1781447514000,-500.0,0.00029589,8]
[425057508,1781447514000,-500.0,0.00029589,8]
[425057506,1781447514000,-1866.64,0.00029589,8]
[425057500,1781447514000,-500.0,0.00029589,8]
[425057505,1781447514000,-500.0,0.00029589,8]
[425057502,1781447514000,-1463.18,0.00029589,8]
[425057499,1781447514000,-1828.15,0.00029589,8]
[425057513,1781447514000,-5973.16,0.00029589,8]
[425057515,1781447514000,-1090.91,0.00029589,8]
[425057511,1781447514000,-500.0,0.00029589,8]
[425057514,1781447514000,-763.45,0.00029589,8]
[425057509,1781447514000,-596.57748822,0.00029589,8]
[425057512,1781447514000,-1413.1,0.00029589,8]
[425057510,1781447514000,-577.98,0.00029589,8]
[425057501,1781447514000,-1343.56,0.00029589,8]
[425057503,1781447514000,-1214.13,0.00029589,8]
[425057504,1781447514000,-595.31,0.00029589,8]
[425057520,1781447514000,-3216.2,0.00029589,8]
[425057589,1781447515000,-1791.15813918,0.00029695,2]
[425057587,1781447515000,-741.37,0.00029589,8]
[425057585,1781447515000,-837.18,0.00029589,8]
[425057583,1781447515000,-500.0,0.00029589,8]
[425057584,1781447515000,-500.0,0.00029589,8]
[425057592,1781447515000,-461.30515792,0.00029766,7]
[425057593,1781447515000,-411.14069465,0.00029767,7]
[425057582,1781447515000,-500.0,0.00029589,8]
[425057580,1781447515000,-922.21,0.00029589,8]
[425057576,1781447515000,-1133.48,0.00029589,8]
[425057588,1781447515000,-914.0,0.00029693,30]
[425057581,1781447515000,-500.0,0.00029589,8]
[425057591,1781447515000,-161.66201743,0.000297,2]
[425057602,1781447515000,-166.74097002,0.00029767,7]
[425057590,1781447515000,-1218.63538749,0.000297,2]
[425057594,1781447515000,-500.3728306,0.00029767,7]
[425057596,1781447515000,-376.61880507,0.00029767,7]
[425057600,1781447515000,-490.30775198,0.00029767,7]
[425057595,1781447515000,-492.48473243,0.00029767,7]
[425057603,1781447515000,-421.45890846,0.00029767,7]
[425057597,1781447515000,-415.11323582,0.00029767,7]
[425057598,1781447515000,-498.17502229,0.00029767,7]
[425057599,1781447515000,-424.30570255,0.00029767,7]
[425057601,1781447515000,-163.82449965,0.00029767,7]
[425057604,1781447515000,-431.11776625,0.00029767,7]
[425057605,1781447515000,-318.75295834,0.00029767,7]
[425057574,1781447515000,-921.05,0.00029589,8]
[425057586,1781447515000,-500.0,0.00029589,8]
[425057577,1781447515000,-500.0,0.00029589,8]
[425057554,1781447515000,-500.0,0.00029589,8]
[425057572,1781447515000,-800.7,0.00029589,8]
[425057549,1781447515000,-500.0,0.00029589,8]
[425057607,1781447515000,-432.17027155,0.00029767,7]
[425057551,1781447515000,-2061.13,0.00029589,8]
[425057550,1781447515000,-500.0,0.00029589,8]
[425057552,1781447515000,-1297.07,0.00029589,8]
[425057547,1781447515000,-500.0,0.00029589,8]
[425057553,1781447515000,-649.93,0.00029589,8]
[425057555,1781447515000,-500.0,0.00029589,8]
[425057556,1781447515000,-1057.08,0.00029589,8]
[425057557,1781447515000,-1326.3,0.00029589,8]
[425057563,1781447515000,-1648.13,0.00029589,8]
[425057567,1781447515000,-500.0,0.00029589,8]
[425057558,1781447515000,-500.0,0.00029589,8]
[425057560,1781447515000,-1599.83,0.00029589,8]
[425057562,1781447515000,-5289.14,0.00029589,8]
[425057564,1781447515000,-955.12,0.00029589,8]
[425057561,1781447515000,-640.65,0.00029589,8]
[425057566,1781447515000,-577.21,0.00029589,8]
[425057559,1781447515000,-707.22,0.00029589,8]
[425057565,1781447515000,-861.57,0.00029589,8]
[425057568,1781447515000,-500.0,0.00029589,8]
[425057570,1781447515000,-1609.77,0.00029589,8]
[425057571,1781447515000,-500.0,0.00029589,8]
[425057573,1781447515000,-500.0,0.00029589,8]
[425057569,1781447515000,-2104.15,0.00029589,8]
[425057575,1781447515000,-500.0,0.00029589,8]
[425057579,1781447515000,-157.62837916,0.00029589,8]
[425057578,1781447515000,-500.0,0.00029589,8]
[425057609,1781447515000,-315.25190402,0.0002977,2]
[425057548,1781447515000,-500.0,0.00029589,8]
[425057618,1781447515000,-159.87831602,0.00029773,7]
[425057635,1781447515000,-316.11881808,0.00029773,7]
[425057639,1781447515000,-170.5493876,0.00029773,7]
[425057641,1781447515000,-378.17523439,0.00029773,7]
[425057644,1781447515000,-371.59006325,0.00029773,7]
[425057647,1781447515000,-161.16367758,0.00029773,7]
[425057645,1781447515000,-379.26633767,0.00029773,7]
[425057646,1781447515000,-417.46298429,0.00029773,7]
[425057654,1781447515000,-301.12621855,0.00029773,7]
[425057650,1781447515000,-511.39169363,0.00029773,7]
[425057649,1781447515000,-420.67142449,0.00029773,7]
[425057653,1781447515000,-385.49929385,0.00029773,7]
[425057651,1781447515000,-347.50283448,0.00029773,7]
[425057648,1781447515000,-311.36040715,0.00029773,7]
[425057652,1781447515000,-165.94359284,0.00029773,7]
[425057655,1781447515000,-443.72988669,0.00029773,7]
[425057665,1781447515000,-388.42211655,0.00029773,7]
[425057666,1781447515000,-430.89928013,0.00029773,7]
[425057656,1781447515000,-427.83447287,0.00029773,7]
[425057657,1781447515000,-479.77288898,0.00029773,7]
[425057658,1781447515000,-330.65836641,0.00029773,7]
[425057661,1781447515000,-165.37170178,0.00029773,2]
[425057659,1781447515000,-486.74390367,0.00029773,7]
[425057660,1781447515000,-414.77542637,0.00029773,7]
[425057662,1781447515000,-582.32992885,0.00029773,7]
[425057663,1781447515000,-164.83477244,0.00029773,7]
[425057664,1781447515000,-169.24951853,0.00029773,7]
[425057668,1781447515000,-412.55313084,0.00029773,7]
[425057637,1781447515000,-473.54123324,0.00029773,7]
[425057638,1781447515000,-431.78697575,0.00029773,7]
[425057667,1781447515000,-438.52388007,0.00029773,7]
[425057640,1781447515000,-310.39722652,0.00029773,7]
[425057636,1781447515000,-484.04526926,0.00029773,7]
[425057608,1781447515000,-496.53690688,0.00029767,2]
[425057617,1781447515000,-406.08281351,0.00029773,7]
[425057610,1781447515000,-533.98585957,0.0002977,7]
[425057612,1781447515000,-159.88931632,0.00029773,7]
[425057616,1781447515000,-159.88451619,0.00029773,7]
[425057613,1781447515000,-160.21376161,0.00029773,7]
[425057611,1781447515000,-679.98876295,0.00029772,7]
[425057615,1781447515000,-401.78371601,0.00029773,7]
[425057614,1781447515000,-320.16822065,0.00029773,7]
[425057619,1781447515000,-159.88291615,0.00029773,7]
[425057622,1781447515000,-460.51099281,0.00029773,7]
[425057621,1781447515000,-159.88463851,0.00029773,7]
[425057624,1781447515000,-485.46286449,0.00029773,7]
[425057606,1781447515000,-500.5616767,0.00029767,7]
[425057625,1781447515000,-159.88611855,0.00029773,7]
[425057623,1781447515000,-159.87811602,0.00029773,7]
[425057633,1781447515000,-513.60482299,0.00029773,5]
[425057642,1781447515000,-168.32788081,0.00029773,7]
[425057631,1781447515000,-432.41198032,0.00029773,7]
[425057643,1781447515000,-178.54815766,0.00029773,2]
[425057632,1781447515000,-213.27945674,0.00029773,7]
[425057634,1781447515000,-160.91469035,0.00029773,7]
[425057620,1781447515000,-159.87811602,0.00029773,7]
[425057628,1781447515000,-453.94899172,0.00029773,7]
[425057626,1781447515000,-171.20279498,0.00029773,7]
[425057629,1781447515000,-168.70139224,0.00029773,7]
[425057627,1781447515000,-458.25706363,0.00029773,7]
[425057630,1781447515000,-326.81607553,0.00029773,7]
[425057713,1781447516000,-763.35323264,0.00029785,7]
[425057708,1781447516000,-210.29545845,0.0002978,7]
[425057706,1781447516000,-260.19639654,0.0002978,7]
[425057705,1781447516000,-159.88451619,0.0002978,7]
[425057704,1781447516000,-159.87811602,0.0002978,7]
[425057714,1781447516000,-643.10153317,0.00029785,7]
[425057699,1781447516000,-159.88931632,0.0002978,7]
[425057700,1781447516000,-159.87651597,0.0002978,7]
[425057698,1781447516000,-159.87811602,0.0002978,7]
[425057703,1781447516000,-319.84527807,0.0002978,7]
[425057710,1781447516000,-737.15769303,0.00029785,7]
[425057717,1781447516000,-105971.4154197,0.000298,3]
[425057712,1781447516000,-778.32106176,0.00029785,7]
[425057709,1781447516000,-240.0,0.00029781,10]
[425057711,1781447516000,-724.66890376,0.00029785,7]
[425057715,1781447516000,-670.28625523,0.00029785,7]
[425057697,1781447516000,-159.88771628,0.0002978,7]
[425057716,1781447516000,-482.27,0.00029793,2]
[425057718,1781447516000,-39028.58457931,0.000298,3]
[425057720,1781447516000,-166.93072038,0.00029802,7]
[425057719,1781447516000,-2400.0,0.000298,10]
[425057721,1781447516000,-268.80007428,0.00029802,7]
[425057723,1781447516000,-325.36852999,0.00029802,7]
[425057722,1781447516000,-162.39622782,0.00029802,7]
[425057725,1781447516000,-319.49824139,0.00029802,7]
[425057707,1781447516000,-159.87811602,0.0002978,7]
[425057693,1781447516000,-628.48180692,0.00029777,7]
[425057690,1781447516000,-467.87442539,0.00029776,7]
[425057696,1781447516000,-309.91134697,0.0002978,7]
[425057724,1781447516000,-497.82388672,0.00029802,7]
[425057670,1781447516000,-169.27337696,0.00029773,7]
[425057672,1781447516000,-546.37622396,0.00029773,7]
[425057669,1781447516000,-370.81929702,0.00029773,5]
[425057671,1781447516000,-391.8534117,0.00029773,7]
[425057675,1781447516000,-200.34685942,0.00029773,7]
[425057677,1781447516000,-488.82815319,0.00029774,7]
[425057673,1781447516000,-587.91463611,0.00029773,7]
[425057674,1781447516000,-160.27783379,0.00029773,7]
[425057676,1781447516000,-447.7028753,0.00029774,7]
[425057679,1781447516000,-159.88933632,0.00029774,7]
[425057678,1781447516000,-200.34822294,0.00029774,7]
[425057695,1781447516000,-399.57602216,0.0002978,7]
[425057691,1781447516000,-459.01439257,0.00029776,7]
[425057680,1781447516000,-301.75823683,0.00029774,7]
[425057683,1781447516000,-164.55628006,0.00029776,7]
[425057682,1781447516000,-324.65504312,0.00029776,7]
[425057685,1781447516000,-487.70597909,0.00029776,7]
[425057686,1781447516000,-423.89499773,0.00029776,7]
[425057688,1781447516000,-165.48296237,0.00029776,7]
[425057687,1781447516000,-173.61352555,0.00029776,7]
[425057689,1781447516000,-331.86691243,0.00029776,7]
[425057692,1781447516000,-493.80621739,0.00029776,7]
[425057694,1781447516000,-159.87651597,0.0002978,2]
[425057702,1781447516000,-199.86364573,0.0002978,7]
[425057701,1781447516000,-159.87811602,0.0002978,7]
[425057681,1781447516000,-504.2297266,0.00029776,7]
[425057684,1781447516000,-401.05352105,0.00029776,7]
[425057727,1781447516000,-469.15425879,0.00029802,7]
[425057726,1781447516000,-402.78541167,0.00029802,7]
[425057756,1781447516000,-8239.47157229,0.00029854,2]
[425057754,1781447516000,-2874.38,0.0002985,2]
[425057758,1781447516000,-4783.80734622,0.00029854,2]
[425057762,1781447516000,-552.7167838,0.00029862,7]
[425057764,1781447516000,-500.0,0.00029863,8]
[425057763,1781447516000,-2287.07,0.00029863,8]
[425057766,1781447516000,-1290.4,0.00029863,8]
[425057765,1781447516000,-569.09,0.00029863,8]
[425057770,1781447516000,-500.0,0.00029863,8]
[425057767,1781447516000,-706.5,0.00029863,8]
[425057771,1781447516000,-510.86,0.00029863,8]
[425057768,1781447516000,-957.59,0.00029863,8]
[425057759,1781447516000,-12270.15,0.00029854,7]
[425057772,1781447516000,-500.0,0.00029863,8]
[425057784,1781447516000,-504.66883467,0.00029863,8]
[425057773,1781447516000,-500.0,0.00029863,8]
[425057775,1781447516000,-1013.37,0.00029863,8]
[425057781,1781447516000,-1526.43,0.00029863,8]
[425057780,1781447516000,-925.25,0.00029863,8]
[425057783,1781447516000,-500.0,0.00029863,8]
[425057782,1781447516000,-500.0,0.00029863,8]
[425057776,1781447516000,-500.0,0.00029863,8]
[425057779,1781447516000,-558.29,0.00029863,8]
[425057777,1781447516000,-512.97,0.00029863,8]
[425057778,1781447516000,-630.1,0.00029863,8]
[425057737,1781447516000,-160.78291045,0.00029802,7]
[425057774,1781447516000,-500.0,0.00029863,8]
[425057753,1781447516000,-4342.75958592,0.00029829,2]
[425057769,1781447516000,-500.0,0.00029863,8]
[425057757,1781447516000,-150.0,0.00029854,2]
[425057755,1781447516000,-150.0,0.00029854,2]
[425057729,1781447516000,-530.84036833,0.00029802,7]
[425057734,1781447516000,-343.86437259,0.00029802,7]
[425057735,1781447516000,-213.74569805,0.00029802,7]
[425057730,1781447516000,-305.70016842,0.00029802,7]
[425057736,1781447516000,-433.15709945,0.00029802,7]
[425057731,1781447516000,-430.19693198,0.00029802,7]
[425057733,1781447516000,-302.1526807,0.00029802,7]
[425057732,1781447516000,-165.66129021,0.00029802,7]
[425057738,1781447516000,-452.60564741,0.00029802,7]
[425057742,1781447516000,-389.0686053,0.00029805,7]
[425057744,1781447516000,-377.46673405,0.00029805,7]
[425057743,1781447516000,-341.77487012,0.00029805,7]
[425057728,1781447516000,-536.82813133,0.00029802,7]
[425057752,1781447516000,-709.78681568,0.00029823,2]
[425057760,1781447516000,-667.37624602,0.00029862,8]
[425057750,1781447516000,-584.41268341,0.00029823,2]
[425057761,1781447516000,-667.37624602,0.00029862,8]
[425057741,1781447516000,-461.75101521,0.00029805,7]
[425057748,1781447516000,-20880.74246202,0.0002981,2]
[425057751,1781447516000,-528.00993264,0.00029823,2]
[425057749,1781447516000,-467.35649457,0.00029823,2]
[425057745,1781447516000,-401.12941195,0.00029805,7]
[425057747,1781447516000,-1791.15813918,0.00029806,2]
[425057746,1781447516000,-325.26248341,0.00029805,7]
[425057740,1781447516000,-169.50082966,0.00029802,7]
[425057739,1781447516000,-517.08227738,0.00029802,7]
[425057830,1781447517000,-1031.86,0.00029863,8]
[425057823,1781447517000,-735.2,0.00029863,8]
[425057825,1781447517000,-500.0,0.00029863,8]
[425057822,1781447517000,-951.06,0.00029863,8]
[425057820,1781447517000,-578.78,0.00029863,8]
[425057819,1781447517000,-926.37,0.00029863,8]
[425057821,1781447517000,-500.0,0.00029863,8]
[425057815,1781447517000,-508.34,0.00029863,8]
[425057818,1781447517000,-514.54,0.00029863,8]
[425057817,1781447517000,-500.0,0.00029863,8]
[425057828,1781447517000,-500.0,0.00029863,8]
[425057812,1781447517000,-500.0,0.00029863,8]
[425057831,1781447517000,-648.16,0.00029863,8]
[425057827,1781447517000,-524.27,0.00029863,8]
[425057835,1781447517000,-546.49,0.00029863,8]
[425057829,1781447517000,-1121.81,0.00029863,8]
[425057826,1781447517000,-553.9,0.00029863,8]
[425057832,1781447517000,-800.55,0.00029863,8]
[425057834,1781447517000,-578.3787975,0.00029863,8]
[425057839,1781447517000,-500.0,0.00029863,8]
[425057837,1781447517000,-500.0,0.00029863,8]
[425057838,1781447517000,-500.0,0.00029863,8]
[425057836,1781447517000,-500.0,0.00029863,8]
[425057842,1781447517000,-1274.35,0.00029863,8]
[425057843,1781447517000,-500.0,0.00029863,8]
[425057840,1781447517000,-1400.43,0.00029863,8]
[425057833,1781447517000,-682.21,0.00029863,8]
[425057824,1781447517000,-500.0,0.00029863,8]
[425057809,1781447517000,-500.0,0.00029863,8]
[425057785,1781447517000,-347.99927,0.00029863,8]
[425057811,1781447517000,-700.76,0.00029863,8]
[425057786,1781447517000,-552.72,0.00029863,8]
[425057841,1781447517000,-500.0,0.00029863,8]
[425057787,1781447517000,-1280.28,0.00029863,8]
[425057791,1781447517000,-500.0,0.00029863,8]
[425057790,1781447517000,-500.0,0.00029863,8]
[425057788,1781447517000,-542.62,0.00029863,8]
[425057789,1781447517000,-500.0,0.00029863,8]
[425057793,1781447517000,-500.0,0.00029863,8]
[425057794,1781447517000,-685.22,0.00029863,8]
[425057795,1781447517000,-614.99,0.00029863,8]
[425057792,1781447517000,-500.0,0.00029863,8]
[425057797,1781447517000,-500.0,0.00029863,8]
[425057807,1781447517000,-738.99,0.00029863,8]
[425057796,1781447517000,-736.33,0.00029863,8]
[425057798,1781447517000,-507.19791729,0.00029863,8]
[425057799,1781447517000,-500.0,0.00029863,8]